fUSD/lending_fUSD_20240127
["ID","MTS","AMOUNT","RATE_DAILY","PERIOD"]
[312865197,1706377841370,-155.0,0.00036166,4]
[312865198,1706377841379,-162.03229046,0.00036166,4]
[312865199,1706377841388,-155.0,0.00036167,4]
[312865200,1706377841397,-155.0,0.00036167,4]
[312865201,1706377841406,-197.06163695,0.00036167,4]
[312865202,1706377841415,-155.0,0.00036167,4]
[312865203,1706377841424,-373.16,0.00036373,2]
[312865204,1706377841434,-173.86238193,0.00036562,2]
[312865205,1706377841443,-250.0,0.0003677,111]
[312865206,1706377841452,-2000.0,0.00037,2]
[312865207,1706377841461,-166.7152,0.00037017,2]
[312865208,1706377841470,-1360.84061074,0.00037018,4]
[312865209,1706377841479,-275.97,0.00037104,2]
[312865210,1706377841487,-565.94,0.00037106,10]
[312865211,1706377841496,-735.40792284,0.00037107,10]
[312865212,1706377841505,-679.13,0.00037107,10]
[312865213,1706377841514,-245.13597428,0.00037108,10]
[312865214,1706377841524,-155.0,0.00037115,4]
[312865215,1706377841533,-325.00034992,0.00037115,4]
[312865216,1706377841542,-155.0,0.00037115,4]
[312865217,1706377841551,-155.0,0.00037115,2]
[312865218,1706377841560,-155.0,0.00037116,4]
[312865219,1706377841569,-155.0,0.00037116,4]
[312865220,1706377841578,-37686.21831521,0.00037117,2]
[312865221,1706377841594,-471.62,0.00037107,10]
[312865223,1706377841602,-516.32500001,0.00037117,2]
[312865224,1706377841614,-789.810015,0.00037117,2]
[312865225,1706377841625,-529.159995,0.00037117,2]
[312865226,1706377841636,-17192.32722682,0.00037117,2]
[312865227,1706377841648,-5384.82123311,0.00037117,2]
[312865228,1706377841659,-487.04628843,0.00037117,2]
[312865229,1706377841694,-920.88,0.00037117,2]
[312865230,1706377841705,-740.33,0.00037117,2]
[312865237,1706377843194,-156.44361902,0.00031286,4]
[312865238,1706377843203,-193.56539008,0.00037117,2]
[312865239,1706377843301,-534.20017826,0.00037117,2]
[312865240,1706377843357,-766.07782871,0.00037117,2]
[312865266,1706377846134,-155.0,0.00033498,4]
[312865268,1706377846144,-145.0,0.00033499,2]
[312865286,1706377846303,-3.46172547,0.00033499,2]
[312865288,1706377846315,-6.72333114,0.00033499,2]
[312865290,1706377846324,-213.75571442,0.00033499,4]
[312865292,1706377846334,-155.0,0.00037116,4]
[312865294,1706377846343,-223.80074652,0.00037117,2]
[312865301,1706377846398,-243850.53038285,0.00037117,2]
[312865302,1706377846407,-6287.9343,0.00037118,2]
[312865303,1706377846416,-200.0,0.00037169,2]
[312865311,1706377846582,-490.27194856,0.00037207,10]
[312865312,1706377846592,-2578.03449735,0.00037215,4]
[312865313,1706377846601,-4273.6526079,0.00037216,4]
[312865314,1706377846610,-37584.15096934,0.00037217,2]
[312865315,1706377846619,-7143.66002699,0.00037217,5]
[312865316,1706377846628,-412.48,0.00037246,2]
[312865317,1706377846637,-800.0,0.00037341,2]
[312865318,1706377846646,-778.92657425,0.00037435,15]
[312865319,1706377846655,-389.46328712,0.00037493,15]
[312865320,1706377846664,-245.13597428,0.00037543,10]
[312865321,1706377846672,-18668.94865727,0.00037553,15]
[312865322,1706377846681,-173.86238193,0.00037881,2]
[312865323,1706377846690,-2000.0,0.00038,2]
[312865324,1706377846699,-150.0,0.00038356,2]
[312865325,1706377846708,-373.16,0.00038637,2]
[312865326,1706377846717,-282.4270994,0.0003898,2]
[312865327,1706377846726,-1430.80823834,0.00039,2]
[312865328,1706377846735,-2000.0,0.00039,2]
[312865329,1706377846744,-173.86238193,0.00039199,2]
[312865330,1706377846753,-166.74,0.00039386,15]
[312865331,1706377846763,-152.25,0.000394,3]
[312865332,1706377846772,-152.25,0.000394,3]
[312865333,1706377846781,-152.25,0.000394,3]
[312865334,1706377846790,-150.0,0.00039484,2]
[312865335,1706377846799,-151.07609,0.00039599,2]
[312865336,1706377846808,-150.14,0.00039826,2]
[312865337,1706377846817,-3880.0947,0.000399,2]
[312865338,1706377846826,-245.13597428,0.0003999,10]
[312865339,1706377846835,-1229.16023377,0.00039996,2]
[312865340,1706377846844,-626.29700848,0.00039997,4]
[312865341,1706377846853,-4051.75576956,0.00039997,4]
[312865342,1706377846862,-1199.49514891,0.00039999,4]
[312865343,1706377846871,-361.65945006,0.00039999,4]
[312865344,1706377846880,-858.05378955,0.00039999,4]
[312865345,1706377846889,-500.0,0.00039999,7]
[312865346,1706377846898,-155.0,0.0004,2]
[312865347,1706377846908,-819.50368134,0.0004,2]
[312865348,1706377846917,-800.01817872,0.0004,60]
[312865349,1706377846926,-33835.47696146,0.0004,4]
[312865350,1706377846935,-2000.0,0.0004,2]
[312865351,1706377846945,-162.51,0.00040314,2]
[312865352,1706377846954,-173.86238193,0.00040517,2]
[312865353,1706377846964,-81920.551875,0.00040568,6]
[312865354,1706377846977,-100000.0,0.00040578,2]
[312865355,1706377846986,-150.0,0.00040612,2]
[312865356,1706377846995,-500.0,0.000408,2]
[312865357,1706377847004,-464.4213,0.000408,15]
[312865358,1706377847014,-21946.0153,0.000409,2]
[312865359,1706377847024,-373.16,0.000409,2]
[312865360,1706377847033,-446.50700616,0.00040908,13]
[312865361,1706377847042,-2000.0,0.00041,2]
[312865362,1706377847051,-1159.94056088,0.00041171,2]
[312865363,1706377847061,-1787.22,0.00041239,5]
[312865364,1706377847071,-200.0,0.00041298,2]
[312865365,1706377847079,-150.0,0.0004174,2]
[312865366,1706377847088,-173.86238193,0.00041836,2]
[312865367,1706377847097,-298.55126371,0.00041841,10]
[312865368,1706377847106,-81920.551875,0.0004189,8]
[312865369,1706377847115,-35477.92529051,0.000419,2]
[312865370,1706377847174,-547.64449025,0.000419,2]
[312865371,1706377847195,-155.31557675,0.00033498,4]
[312865372,1706377847204,-344.68442325,0.000419,2]
[312865373,1706377847216,-17522.46689946,0.000419,2]
[312865374,1706377847228,-2109.75036357,0.000419,2]
[312865375,1706377847245,-907.036193,0.000419,2]
[312865376,1706377847256,-1094.94999998,0.000419,2]
[312865377,1706377892595,536.78088272,0.0001,2]
[312865378,1706377894829,363.02219055,0.000225,2]
[312865379,1706377895951,2085.37217435,0.00022079,2]
[312865380,1706377897225,2423.5828806,0.00011,2]
[312865381,1706377914468,9838.46959866,6.94e-05,2]
[312865382,1706377924221,150.0,0.00022,2]
[312865384,1706377984161,11236.34997035,0.000225,2]
[312865385,1706377992382,150.0,0.00022,2]
[312865386,1706378038721,3197.40021812,0.0002,2]
[312865387,1706378052092,524.04495816,0.00022448,2]
[312865388,1706378060764,150.0,0.00022,2]
[312865390,1706378074241,151.09808341,0.00022,2]
[312865391,1706378100937,175.99,0.00016712,2]
[312865392,1706378131048,150.0,0.00021547,2]
[312865393,1706378162681,176.61,0.00021547,2]
[312865394,1706378163964,176.61,0.00022095,2]
[312865395,1706378169933,2695.67849654,0.00024288,8]
[312865396,1706378179049,617.92309023,0.00022,2]
[312865397,1706378232171,200.0,0.00022442,2]
[312865398,1706378236929,183.85,0.00022458,10]
[312865399,1706378237185,183.85,0.00024659,10]
[312865400,1706378250471,23900.0,0.00022483,2]
[312865401,1706378279281,167.4,0.00022488,2]
[312865403,1706378392517,155.0,0.000225,2]
[312865404,1706378394007,155.0,0.000225,2]
[312865405,1706378394073,155.0,0.000225,2]
[312865406,1706378398910,2318.0,0.00022327,2]
[312865407,1706378401504,178.15674416,0.000225,2]
[312865408,1706378403902,524.98204654,0.000225,2]
[312865409,1706378404809,203.04824283,0.000225,2]
[312865410,1706378405836,1180.39978806,0.000225,2]
[312865411,1706378407111,155.0,0.000225,2]
[312865412,1706378414664,5224.49310087,0.000225,2]
[312865413,1706378420032,630.041593,0.000225,2]
[312865414,1706378421087,155.0,0.00020694,2]
[312865415,1706378423879,155.0,0.000225,2]
[312865416,1706378425692,868.64087171,0.000225,2]
[312865417,1706378425890,155.0,0.000225,2]
[312865418,1706378425921,155.0,0.000225,2]
[312865419,1706378426131,234.93713699,0.000225,2]
[312865420,1706378430751,502.88579647,0.000225,7]
[312865422,1706378443586,155.0,0.00020694,2]
[312865423,1706378458575,155.0,0.000225,2]
[312865424,1706378459595,174.17562456,0.00020608,2]
[312865425,1706378467030,155.0,0.000225,2]
[312865426,1706378477177,203.04824283,0.000225,2]
[312865427,1706378494426,155.0,0.000225,2]
[312865428,1706378496412,155.0,0.000225,2]
[312865429,1706378499400,401.29405049,0.000225,2]
[312865430,1706378502128,155.0,0.000225,2]
[312865431,1706378505898,1262.71758815,0.000225,2]
[312865432,1706378510356,232.43131942,0.000225,2]
[312865433,1706378553687,203.04824283,0.000225,2]
[312865435,1706378564191,200.0,0.00022225,2]
[312865436,1706378639202,406.79,0.00020308,2]
[312865437,1706378650855,2000.0,0.00022225,2]
[312865438,1706378658094,200.0,0.00022225,2]
[312865439,1706378672464,150.0,0.00022082,2]
[312865440,1706378696545,200.0,0.00021936,2]
[312865441,1706378742471,200.0,0.00021924,2]
[312865442,1706378756177,156.52,0.00021932,2]
[312865443,1706378766931,2156.54279724,0.00023091,7]
[312865444,1706378771105,163.76,0.00021936,2]
[312865445,1706378778206,250.0,0.00021936,2]
[312865446,1706378780789,176.61,0.00021899,2]
[312865447,1706378782072,176.61,0.00022447,2]
[312865448,1706378792688,152.64318861,0.00022335,2]
[312865449,1706378827422,23900.0,0.00021943,2]
[312865450,1706378838773,200.0,0.000226,8]
[312865451,1706378840930,500.0,0.000227,8]
[312865452,1706378843053,800.0,0.000228,8]
[312865453,1706378845152,1100.0,0.000229,8]
[312865454,1706378857175,245.16,0.00021943,2]
[312865455,1706378912242,1725.2342378,0.00023443,7]
[312865458,1706378937658,250.0,0.0002195,2]
[312865461,1706378999544,960.0,0.00021945,2]
[312865463,1706379026963,1278.63376419,0.00021945,5]
[312865471,1706379032325,-247.50960015,0.00022501,2]
[312865472,1706379032335,-406.79,0.00022571,2]
[312865473,1706379032345,-647.00040005,0.00022651,2]
[312865474,1706379032357,-354.84959995,0.00022651,2]
[312865475,1706379032370,-155.80319927,0.00022669,2]
[312865476,1706379032379,-152.9179283,0.00022774,2]
[312865477,1706379032389,-152.91792823,0.00022791,2]
[312865478,1706379032399,-152.91792823,0.00022808,2]
[312865479,1706379032410,-152.91792823,0.00022825,2]
[312865480,1706379032419,-152.91792823,0.00022842,2]
[312865481,1706379032429,-152.91792823,0.0002286,2]
[312865482,1706379032439,-499.99,0.0002286,2]
[312865483,1706379032448,-150.99,0.0002286,2]
[312865484,1706379032457,-88981.65,0.0002286,2]
[312865485,1706379032466,-151.08297639,0.00022874,2]
[312865486,1706379032475,-152.91792823,0.00022877,2]
[312865487,1706379032485,-152.91792823,0.00022894,2]
[312865488,1706379032494,-300.0,0.00022896,2]
[312865489,1706379032504,-158.8409691,0.00022897,2]
[312865490,1706379032514,-181.24950927,0.00022897,2]
[312865491,1706379032524,-399.63683463,0.00022897,2]
[312865492,1706379032534,-155.35719994,0.00022897,2]
[312865493,1706379032544,-879.81391242,0.00022897,2]
[312865494,1706379032553,-231.34778786,0.00022897,2]
[312865495,1706379032562,-204.25558067,0.00022897,2]
[312865496,1706379032572,-168.61937043,0.00022898,2]
[312865497,1706379032581,-495526.09478901,0.00022899,2]
[312865498,1706379032590,-156.60112098,0.000229,2]
[312865499,1706379032600,-184.71706284,0.000229,2]
[312865500,1706379032609,-194.58103894,0.000229,2]
[312865501,1706379032619,-213.36543942,0.000229,2]
[312865502,1706379032628,-167.61944862,0.000229,2]
[312865503,1706379032637,-207.22768446,0.000229,2]
[312865504,1706379032647,-284.60485003,0.000229,2]
[312865505,1706379032657,-152.91792823,0.00022911,2]
[312865506,1706379032670,-152.91792823,0.00022928,2]
[312865507,1706379032680,-152.91792823,0.00022945,2]
[312865508,1706379032689,-800.0,0.00022959,2]
[312865509,1706379032699,-564.88177695,0.00022974,2]
[312865510,1706379032708,-215.35384188,0.00022975,2]
[312865511,1706379032718,-243.20763244,0.00022986,2]
[312865512,1706379032727,-261.88942884,0.00022993,2]
[312865513,1706379032736,-519.08995463,0.00022993,2]
[312865514,1706379032746,-263.21972991,0.00022993,2]
[312865515,1706379032755,-376.90845451,0.00022993,2]
[312865516,1706379032765,-866.66662799,0.00022993,2]
[312865517,1706379032774,-155.49419983,0.00022994,2]
[312865518,1706379032784,-1995.211889,0.00022994,2]
[312865519,1706379032794,-176.61,0.00022995,2]
[312865520,1706379032803,-6388.87669322,0.00022996,2]
[312865521,1706379032813,-169.22224989,0.00022996,2]
[312865522,1706379032822,-3121.11034554,0.00022996,2]
[312865523,1706379032831,-155.0,0.00022998,2]
[312865524,1706379032842,-5442.70539136,0.00022998,2]
[312865525,1706379032851,-1068.83824203,0.00022998,2]
[312865526,1706379032860,-220.30306813,0.00022998,2]
[312865527,1706379032870,-1255.00056628,0.00022998,2]
[312865528,1706379032879,-157.40915313,0.00022998,2]
[312865529,1706379032888,-3964.39161946,0.00022998,2]
[312865530,1706379032898,-193.8500035,0.00022998,2]
[312865531,1706379032907,-336.7179586,0.00022998,2]
[312865532,1706379032916,-155.69206296,0.00022998,2]
[312865533,1706379032925,-158.30695886,0.00022998,2]
[312865534,1706379032934,-208.02736992,0.00022998,2]
[312865535,1706379032943,-2967.75744964,0.00022998,2]
[312865536,1706379032952,-1218.48457109,0.00022998,2]
[312865537,1706379032961,-369.19666549,0.00022998,2]
[312865538,1706379032970,-2144.43375818,0.00022998,2]
[312865539,1706379032979,-27176.59113526,0.00022998,2]
[312865540,1706379032987,-286.73899009,0.00022998,2]
[312865541,1706379032996,-198.98076136,0.00022998,2]
[312865542,1706379033009,-2167.52559884,0.00022998,2]
[312865543,1706379033018,-2979.62207994,0.00022998,2]
[312865544,1706379033027,-302.89880783,0.00022998,2]
[312865545,1706379033037,-1850.5397768,0.00022998,2]
[312865546,1706379033046,-2780.01755274,0.00022998,2]
[312865547,1706379033055,-258.61319956,0.00022998,2]
[312865548,1706379033064,-155.48736217,0.00022998,2]
[312865549,1706379033073,-695.69995506,0.00022999,2]
[312865550,1706379033083,-16772.65978305,0.00022999,2]
[312865551,1706379033093,-217257.0313107,0.00023,2]
[312865552,1706379033594,-627.97845,0.00023,2]
[312865553,1706379033648,-2123.00412,0.00023,2]
[312865554,1706379033659,-4324.98764311,0.00023,2]
[312865555,1706379033671,-718483.77441903,0.00023,2]
[312865568,1706379033833,-2126.27022583,0.00023,2]
[312865590,1706379038294,-1576.10650313,0.00023,2]
[312865591,1706379038306,-20900.0,0.00023,2]
[312865592,1706379038348,-402.12299413,0.00023,2]
[312865593,1706379038511,-27226.51520058,0.00023,2]
[312865832,1706379041040,-509.9919401,0.00023,2]
[312865883,1706379044008,-6187.34,0.00023,2]
[312865884,1706379044020,-4027.44648834,0.00023,2]
[312865966,1706379047063,-325.4120935,0.00023,2]
[312865967,1706379047074,-347.41192985,0.00023,2]
[312865968,1706379047093,-572.85,0.00023,2]
[312865969,1706379101506,-161599.7370345,0.00041943,120]
[312865970,1706379115398,-3179.65781015,0.00022767,2]
[312865971,1706379115421,-246.97188179,0.00022768,2]
[312865972,1706379133458,-1380.18739024,0.00039872,31]
[312865973,1706379133481,-319.65201277,0.0004,120]
[312865974,1706379133504,-165.22,0.00041089,120]
[312865975,1706379133527,-5000.0,0.00042,35]
[312865976,1706379133550,-86401.16528484,0.00043,30]
[312865977,1706379133575,-1380.1873902,0.00043379,36]
[312865978,1706379133608,-90000.0,0.000439,30]
[312865979,1706379133633,-802.82707846,0.00044,120]
[312865980,1706379133659,-90000.0,0.000449,30]
[312865981,1706379133685,-2027.78,0.00046849,120]
[312865982,1706379133709,-1380.1873902,0.00046886,42]
[312865983,1706379133732,-500.0,0.00047945,30]
[312865984,1706379133757,-5048.23482588,0.00049,30]
[312865985,1706379133781,-200.0,0.00049315,60]
[312865986,1706379133805,-402.65,0.00049726,30]
[312865987,1706379133827,-402.65,0.00049726,30]
[312865988,1706379133849,-402.65,0.00049726,30]
[312865989,1706379133878,-402.65,0.00049726,30]
[312865990,1706379133904,-402.65,0.00049726,30]
[312865991,1706379133928,-401.27,0.00049726,30]
[312865992,1706379133952,-943.45,0.00049726,30]
[312865993,1706379133975,-943.45,0.00049726,30]
[312865994,1706379133997,-943.45,0.00049726,30]
[312865995,1706379134019,-943.45,0.00049726,30]
[312865996,1706379134042,-943.45,0.00049726,30]
[312865997,1706379134069,-943.45,0.00049726,30]
[312865998,1706379134238,-943.45,0.00049726,30]
[312865999,1706379134261,-943.45,0.00049726,30]
[312866000,1706379134286,-943.45,0.00049726,30]
[312866001,1706379134309,-943.45,0.00049726,30]
[312866002,1706379134330,-943.45,0.00049726,30]
[312866003,1706379134353,-489231.0728184,0.0005,60]
[312866004,1706379134375,-64736.2084188,0.0005,30]
[312866005,1706379134400,-359.7710561,0.0005,120]
[312866006,1706379134421,-1000.0,0.0005,30]
[312866007,1706379134444,-1026.94305464,0.0005,30]
[312866008,1706379134466,-783.34,0.0005,120]
[312866009,1706379134489,-232.0,0.0005,30]
[312866010,1706379134510,-1791.0,0.0005,30]
[312866011,1706379134534,-1000.0,0.00050087,30]
[312866012,1706379134556,-1380.1873902,0.00050393,47]
[312866013,1706379134580,-2902.047267,0.000505,30]
[312866014,1706379134602,-943.45,0.00050685,30]
[312866015,1706379134623,-943.45,0.00050685,30]
[312866016,1706379134649,-943.45,0.00050685,30]
[312866017,1706379134672,-923.59,0.00050685,30]
[312866018,1706379134694,-10105.97459115,0.00051,120]
[312866019,1706379134716,-409.25,0.00051233,30]
[312866020,1706379134739,-419.17,0.00051233,30]
[312866021,1706379134761,-150.0,0.00051233,30]
[312866022,1706379134784,-294.83,0.00051233,30]
[312866023,1706379134805,-150.0,0.00051233,30]
[312866024,1706379134827,-152.47,0.00051233,30]
[312866025,1706379134852,-165.22,0.00051361,120]
[312866026,1706379134875,-151.77,0.00051557,120]
[312866027,1706379134900,-1000.0,0.00051652,30]
[312866028,1706379134924,-1000.0,0.00051652,30]
[312866029,1706379134946,-1000.0,0.00051652,30]
[312866030,1706379134969,-1000.0,0.00051652,30]
[312866031,1706379134998,-1000.0,0.00051652,30]
[312866032,1706379135020,-1000.0,0.00051652,30]
[312866033,1706379135043,-1000.0,0.00051652,30]
[312866034,1706379135069,-1000.0,0.00051652,30]
[312866035,1706379135092,-1000.0,0.00051652,30]
[312866036,1706379135114,-1000.0,0.00051652,30]
[312866037,1706379135136,-1000.0,0.00051652,30]
[312866038,1706379135159,-1000.0,0.00051652,30]
[312866039,1706379135184,-206.0,0.00051989,36]
[312866040,1706379135206,-2206.0,0.00052,60]
[312866041,1706379135229,-500000.0,0.00052,120]
[312866042,1706379135251,-659.04,0.00052054,31]
[312866043,1706379135275,-500.0,0.00052054,31]
[312866044,1706379135298,-500.0,0.00052054,31]
[312866045,1706379135321,-513.23475054,0.00052054,31]
[312866046,1706379135343,-623.67,0.00052054,31]
[312866047,1706379135365,-589.5290784,0.00052054,31]
[312866048,1706379135388,-545.54,0.00052054,31]
[312866049,1706379135413,-500.0,0.00052054,31]
[312866050,1706379135436,-535.8612713,0.00052054,31]
[312866051,1706379135459,-299.77992,0.00052054,31]
[312866052,1706379135481,-500.0,0.00052054,31]
[312866053,1706379135503,-1041.23,0.00052054,31]
[312866054,1706379135525,-561.00392955,0.00052054,31]
[312866055,1706379135549,-33261.2,0.00052054,31]
[312866056,1706379135574,-500.0,0.00052054,31]
[312866057,1706379135596,-188.58696268,0.00052054,31]
[312866058,1706379135619,-500.0,0.00052054,31]
[312866059,1706379135641,-500.0,0.00052054,31]
[312866060,1706379135662,-12479.16,0.00052054,31]
[312866061,1706379135683,-2795.19,0.00052054,31]
[312866062,1706379135705,-628.12,0.00052054,31]
[312866063,1706379135728,-500.0,0.00052054,31]
[312866064,1706379135752,-500.0,0.00052054,31]
[312866065,1706379135774,-500.0,0.00052054,31]
[312866066,1706379135796,-500.0,0.00052054,31]
[312866067,1706379135819,-1014.91,0.00052054,31]
[312866068,1706379135845,-500.0,0.00052054,30]
[312866069,1706379135867,-500.0,0.00052054,31]
[312866070,1706379135889,-698.6,0.00052054,31]
[312866071,1706379135911,-251.75644374,0.00052054,31]
[312866072,1706379135934,-500.0,0.00052054,31]
[312866073,1706379135956,-500.0,0.00052054,31]
[312866074,1706379135984,-647.32945045,0.00052054,31]
[312866075,1706379136007,-500.0,0.00052054,31]
[312866076,1706379136029,-410.68840309,0.00052054,31]
[312866077,1706379136053,-500.0,0.00052054,31]
[312866078,1706379136075,-527.62,0.00052054,31]
[312866079,1706379136097,-500.0,0.00052054,31]
[312866080,1706379136118,-500.0,0.00052054,31]
[312866081,1706379136141,-500.0,0.00052054,31]
[312866082,1706379136163,-500.0,0.00052054,31]
[312866083,1706379136186,-866.97,0.00052054,31]
[312866084,1706379136209,-500.0,0.00052054,31]
[312866085,1706379136232,-500.0,0.00052054,31]
[312866086,1706379136254,-500.0,0.00052054,31]
[312866087,1706379136277,-517.26181688,0.00052054,31]
[312866088,1706379136301,-500.0,0.00052054,31]
[312866089,1706379136323,-166.65,0.00052054,31]
[312866090,1706379136345,-525.24989625,0.00052054,31]
[312866091,1706379136479,-500.0,0.00052054,31]
[312866092,1706379136502,-521.99868948,0.00052054,31]
[312866093,1706379136525,-2050.48434274,0.00052054,30]
[312866094,1706379136546,-500.0,0.00052054,31]
[312866095,1706379136569,-500.0,0.00052054,31]
[312866096,1706379136594,-500.0,0.00052054,31]
[312866097,1706379136619,-615.70448998,0.00052054,31]
[312866098,1706379136641,-500.0,0.00052054,31]
[312866099,1706379136664,-500.0,0.00052055,30]
[312866100,1706379136687,-659.04,0.00052328,31]
[312866101,1706379136710,-500.0,0.00052328,31]
[312866102,1706379136732,-649.21785222,0.00052328,31]
[312866103,1706379136754,-623.67,0.00052328,31]
[312866104,1706379136778,-545.54,0.00052328,31]
[312866105,1706379136800,-500.0,0.00052328,31]
[312866106,1706379136823,-1041.23,0.00052328,31]
[312866107,1706379136845,-33261.2,0.00052328,31]
[312866108,1706379136870,-500.0,0.00052328,31]
[312866109,1706379136893,-342.97,0.00052328,31]
[312866110,1706379136914,-500.0,0.00052328,31]
[312866111,1706379136935,-12479.16,0.00052328,31]
[312866112,1706379136957,-2795.19,0.00052328,31]
[312866113,1706379136981,-628.12,0.00052328,31]
[312866114,1706379137003,-500.0,0.00052328,31]
[312866115,1706379137025,-500.0,0.00052328,31]
[312866116,1706379137048,-500.0,0.00052328,31]
[312866117,1706379137070,-500.0,0.00052328,31]
[312866118,1706379137095,-1014.91,0.00052328,31]
[312866119,1706379137119,-500.0,0.00052328,30]
[312866120,1706379137142,-251.46,0.00052328,31]
[312866121,1706379137166,-698.6,0.00052328,31]
[312866122,1706379137188,-500.0,0.00052328,31]
[312866123,1706379137211,-500.0,0.00052328,31]
[312866124,1706379137235,-500.0,0.00052328,31]
[312866125,1706379137259,-527.62,0.00052328,31]
[312866126,1706379137283,-500.0,0.00052328,31]
[312866127,1706379137306,-500.0,0.00052328,31]
[312866128,1706379137329,-500.0,0.00052328,31]
[312866129,1706379137352,-150.11079393,0.00052328,31]
[312866130,1706379137374,-866.97,0.00052328,31]
[312866131,1706379137406,-500.0,0.00052328,31]
[312866132,1706379137430,-503.34197978,0.00052328,31]
[312866133,1706379137455,-500.0,0.00052328,31]
[312866134,1706379137479,-404.81,0.00052328,31]
[312866135,1706379137502,-500.0,0.00052328,31]
[312866136,1706379137525,-500.0,0.00052328,31]
[312866137,1706379137547,-450.92996774,0.00052328,31]
[312866138,1706379137568,-1465.07619975,0.000524,120]
[312866139,1706379137595,-4725.8,0.000524,30]
[312866140,1706379137626,-5000.00000002,0.000524,30]
[312866141,1706379137658,-659.04,0.00052602,31]
[312866142,1706379137687,-500.0,0.00052602,31]
[312866143,1706379137717,-623.67,0.00052602,31]
[312866144,1706379137747,-545.54,0.00052602,31]
[312866145,1706379137777,-500.0,0.00052602,31]
[312866146,1706379137806,-1041.23,0.00052602,31]
[312866147,1706379137835,-33261.2,0.00052602,31]
[312866148,1706379137864,-500.0,0.00052602,31]
[312866149,1706379137893,-12479.16,0.00052602,31]
[312866150,1706379137920,-2795.19,0.00052602,31]
[312866151,1706379137951,-628.12,0.00052602,31]
[312866152,1706379137981,-500.0,0.00052602,31]
[312866153,1706379138010,-500.0,0.00052602,31]
[312866154,1706379138040,-500.0,0.00052602,31]
[312866155,1706379138069,-500.0,0.00052602,31]
[312866156,1706379138097,-1014.91,0.00052602,31]
[312866157,1706379138121,-500.0,0.00052602,30]
[312866158,1706379138148,-698.6,0.00052602,31]
[312866159,1706379138176,-500.0,0.00052602,31]
[312866160,1706379138203,-533.48,0.00052602,31]
[312866161,1706379138231,-306.31655103,0.00052602,31]
[312866162,1706379138256,-527.62,0.00052602,31]
[312866163,1706379138282,-448.32,0.00052602,31]
[312866164,1706379138308,-500.0,0.00052602,31]
[312866165,1706379138334,-190.24811064,0.00052602,31]
[312866166,1706379138360,-866.97,0.00052602,31]
[312866167,1706379138387,-500.0,0.00052602,31]
[312866168,1706379138415,-500.0,0.00052602,31]
[312866169,1706379138442,-500.0,0.00052602,31]
[312866170,1706379138469,-486.96,0.00052602,31]
[312866171,1706379138500,-161.0027903,0.00052865,60]
[312866172,1706379138526,-659.04,0.00052876,31]
[312866173,1706379138552,-500.0,0.00052876,31]
[312866174,1706379138579,-623.67,0.00052876,31]
[312866175,1706379138605,-545.54,0.00052876,31]
[312866176,1706379138631,-500.0,0.00052876,31]
[312866177,1706379138656,-1041.23,0.00052876,31]
[312866178,1706379138686,-33261.2,0.00052876,31]
[312866179,1706379138711,-500.0,0.00052876,31]
[312866180,1706379138736,-12479.16,0.00052876,31]
[312866181,1706379138764,-2795.19,0.00052876,31]
[312866182,1706379138790,-628.12,0.00052876,31]